Cogmind - Beta 12 @@@ ROGUE MODE // 2023.11.17 @ 14:21:15 Player: monistgf Result: Destroyed by H-55 Commando with Gauss Rifle Performance ------------- Evolutions (1) 500 Regions Visited (6) 1200 Robots Destroyed (66) 330 Value Destroyed (1658) 1658 Prototype IDs (4) 80 Alien Tech Used (0) 0 Bonus (76) 76 TOTAL SCORE: 3844 Bonus ------- High Alert Combat Kills 26 Follower Combat Kills 50 Cogmind --------- Core Integrity 0/400 Matter 282/300 Energy 158/160 System Corruption 0% Temperature Cool (0) Movement Treading (240) Ox1 Location -8/Mines Parts ------- > --- POWER (1) -------- Light Nuclear Core > --- PROPULSION (2) --- Improved Treads Improved Treads > --- UTILITY (4) ------ High-capacity Storage Unit Sensor Array Signal Interpreter > --- WEAPON (2) ------- Improved Assault Rifle Improved Assault Rifle > --- INVENTORY (20) --- Ion Engine Aluminum Leg Aluminum Leg Carbon-fiber Leg Carbon-fiber Leg Surge Thruster Surge Thruster Surge Thruster Surge Thruster Structural Scanner Improved Trap Extractor (0/6) Heavy Laser Light Assault Rifle Improved Assault Rifle Grenade Launcher Peak State ------------ > --- POWER ------------ Light Nuclear Core > --- PROPULSION ------- Improved Treads Improved Treads > --- UTILITY ---------- High-capacity Storage Unit Sensor Array Signal Interpreter Hacking Suite > --- WEAPON ----------- Improved Assault Rifle Improved Assault Rifle > --- INVENTORY -------- Ion Engine Aluminum Leg Aluminum Leg Carbon-fiber Leg Surge Thruster Surge Thruster Surge Thruster Surge Thruster Structural Scanner Improved Trap Extractor Heavy Laser Light Assault Rifle Improved Assault Rifle Grenade Launcher [Rating: 22] Favorites ----------- Power Heavy Ion Engine Engine Heavy Ion Engine Power Core Light Nuclear Core Propulsion Improved Treads Treads Improved Treads Leg Aluminum Leg Wheel Compact Wheel Hover Unit Airjet Utility Medium Storage Unit Device Sensor Array Storage Medium Storage Unit Processor Signal Interpreter Hackware Hacking Suite Protection Medium Armor Plating Weapon Improved Assault Rifle Energy Gun Field Laser Ballistic Gun Improved Assault Rifle Launcher Grenade Launcher Build | -11 -10 -10 -9 -9 -9 -8 ------- Run | Jun Mat Min Mat Min Exi Min Slots Evolved 2 | . . . 2 . . . Power . | . . . . . . . Propulsion . | . . . . . . . Utility 2 | . . . 2 . . . Weapon . | . . . . . . . Parts Attached 61 | . 16 6 36 . 2 1 Power 11 | . 7 1 2 . . 1 Engine 8 | . 6 1 1 . . . Core 3 | . 1 . 1 . . 1 Reactor . | . . . . . . . Propulsion 22 | . 4 3 15 . . . Treads 9 | . . . 9 . . . Leg 4 | . 4 . . . . . Wheel 7 | . . 3 4 . . . Hover 2 | . . . 2 . . . Flight . | . . . . . . . Utility 13 | . 2 . 9 . 2 . Device 4 | . 1 . 3 . . . Storage 3 | . 1 . . . 2 . Processor 2 | . . . 2 . . . Hackware 1 | . . . 1 . . . Protection 3 | . . . 3 . . . Artifact . | . . . . . . . Weapon 15 | . 3 2 10 . . . Energy Gun 2 | . . 1 1 . . . Energy Cannon . | . . . . . . . Ballistic Gun 10 | . 3 1 6 . . . Ballistic Cannon . | . . . . . . . Launcher 3 | . . . 3 . . . Special Weapon . | . . . . . . . Impact Weapon . | . . . . . . . Slashing Weapon . | . . . . . . . Piercing Weapon . | . . . . . . . Special Melee Weapon . | . . . . . . . Unidentified Prototypes . | . . . . . . . Parts Lost 19 | . 5 1 12 . . 1 Power 3 | . 2 . 1 . . . Propulsion 7 | . . 1 6 . . . Utility 3 | . . . 2 . . 1 Weapon 6 | . 3 . 3 . . . Highest Loss Streak 11 | . 2 1 11 . . 1 To Critical Strikes . | . . . . . . . Average Slot Usage (%) 96 | . 90 96 97 100 100 98 Engine 9 | . 11 5 10 11 11 3 Core 2 | . 2 8 . . . 7 Treads 10 | . . . 11 22 22 22 Leg 7 | . 28 3 . . . . Wheel 5 | . . 24 10 . . . Device 8 | . 5 14 5 11 11 11 Storage 12 | . 14 14 11 11 11 11 Processor 6 | . . . 10 11 11 11 Hackware 6 | . . . 10 11 11 9 Protection 1 | . . . 5 . . . Energy Gun 1 | . . 8 2 . . . Ballistic Gun 21 | . 27 16 18 22 22 22 Naked Turns . | . . . . . . . Heaviest Build 55 | 11 18 24 31 25 55 55 Greatest Support 46 | 20 20 32 46 46 46 46 Greatest Overweight (x) 6 | . 1 1 6 . 1 1 Average Overweight (x) . | . . . . . . 1 Largest Inventory Capacity 20 | . 10 10 10 10 20 20 Average Capacity 11 | . 9 10 10 10 14 20 Most Carried 15 | . 10 10 10 10 11 15 Average Carried 9 | . 8 9 8 9 10 13 Final Capacity 20 | 8 10 10 10 10 20 20 Final Carried 15 | 6 7 10 10 10 10 15 Class Distribution -------------------- 75% | Mutant 24% | Scavenger-Mutant Dominant Class ---------------- Mutant | -10/Materials Mutant | -10/Mines Scavenger-Mutant | -9/Materials Mutant | -9/Mines Mutant | -9/Exiles Scavenger-Mutant | -8/Mines Resources | -11 -10 -10 -9 -9 -9 -8 ----------- Run | Jun Mat Min Mat Min Exi Min Matter Collected 1684 | 200 585 70 655 102 . 72 Remotely . | . . . . . . . Salvage Created 1946 | . 702 132 957 . . 155 Parts 152 | . 59 14 69 . . 10 Haulers Intercepted 4 | . 2 . 2 . . . Recyclers Shooed 4 | . 1 . 3 . . . Parts Field Recycled . | . . . . . . . Retrieved Matter . | . . . . . . . Parts Self-Destructed . | . . . . . . . Prevented . | . . . . . . . Kills | -11 -10 -10 -9 -9 -9 -8 ------- Run | Jun Mat Min Mat Min Exi Min Combat Hostiles Destroyed 49 | . 16 4 26 . . 3 Guns 39 | . 16 4 16 . . 3 AOE 10 | . . . 10 . . . Classes Destroyed 10 | . 6 2 2 . . . Worker 1 | . 1 . . . . . Builder 1 | . . . 1 . . . Tunneler 1 | . . 1 . . . . Hauler 4 | . 2 . 2 . . . Mechanic 1 | . . . 1 . . . Operator 4 | . 3 . 1 . . . Watcher 5 | . 2 . 3 . . . Swarmer 16 | . 6 3 7 . . . Grunt 26 | . 10 . 13 . . 3 Sentry 7 | . . 1 6 . . . Best Kill Streak 6 | . 6 3 5 . . 3 Combat Bots Only 6 | . 6 2 4 . . 3 Max Kills in Single Turn 2 | . 1 1 2 . . 1 Gunslinging . | . . . . . . . Exploded 2 | . . . 2 . . . Melee . | . . . . . . . Uniques/NPCs Destroyed . | . . . . . . . Combat | -11 -10 -10 -9 -9 -9 -8 -------- Run | Jun Mat Min Mat Min Exi Min Damage Taken 2725 | . 764 82 1526 18 . 335 Core 578 | . 143 17 280 . . 138 Absorbed by Shields . | . . . . . . . Core Remaining (%) 68 | 100 . 36 . . . . Volleys Fired 213 | . 99 10 94 . . 10 Largest 2 | . 2 2 2 . . 2 Hottest 86 | . 40 83 86 . . 46 Shots Fired 391 | . 197 19 155 . . 20 Gun 376 | . 197 19 140 . . 20 Cannon . | . . . . . . . Launcher 15 | . . . 15 . . . Special . | . . . . . . . Kinetic 361 | . 197 10 134 . . 20 Thermal 15 | . . 9 6 . . . Explosive 15 | . . . 15 . . . Electromagnetic . | . . . . . . . Robot Hit Streak 23 | . 12 5 23 . . 21 Robot Miss Streak 9 | . 9 3 3 . . 1 Penetration Max . | . . . . . . . Secondary Targets 4 | . 2 . 1 . . 1 Max Gunslinging Chain 1 | . 1 . 1 . . 1 Shots Hit Robots 269 | . 125 10 118 . . 16 Core Hits 125 | . 50 8 58 . . 9 Critical Kills . | . . . . . . . Critical Parts Destroyed 3 | . 1 . 1 . . 1 Critical Strikes 4 | . 1 . 2 . . 1 Burn 1 | . . . 1 . . . Destroy 3 | . 1 . 1 . . 1 Melee Attacks . | . . . . . . . Impact . | . . . . . . . Slashing . | . . . . . . . Piercing . | . . . . . . . Sneak Attacks . | . . . . . . . Combat Hostiles . | . . . . . . . Follow-up Attacks . | . . . . . . . Damage Inflicted 3876 | . 1131 137 2379 . . 229 Guns 2977 | . 1131 137 1480 . . 229 Cannons . | . . . . . . . Explosions 890 | . . . 890 . . . Melee . | . . . . . . . Ramming 9 | . . . 9 . . . Kinetic 2803 | . 1131 37 1406 . . 229 Thermal 174 | . . 100 74 . . . Explosive 890 | . . . 890 . . . Electromagnetic . | . . . . . . . Impact . | . . . . . . . Slashing . | . . . . . . . Piercing . | . . . . . . . Highest Corruption . | . . . . . . . Average Corruption . | . . . . . . . Corruption Purged . | . . . . . . . Corruption Blocked . | . . . . . . . Overload Shots . | . . . . . . . Overflow Damage 15 | . . . 15 . . . Projectiles . | . . . . . . . Explosions 15 | . . . 15 . . . Melee . | . . . . . . . Knockbacks 1 | . . . 1 . . . Impact 1 | . . . 1 . . . Kinetic . | . . . . . . . Secondary . | . . . . . . . Self-Inflicted Damage 101 | . . . 101 . . . Shots 3 | . . . 3 . . . Rammed 2 | . . . 2 . . . Targets Rammed 2 | . . . 2 . . . Kicked . | . . . . . . . Crushed . | . . . . . . . Highest Temperature 176 | . 18 176 51 . . 11 Average Temperature 24 | . 7 70 15 . . 3 Received Heat Transfer 915 | . 309 27 480 . . 99 Siege Activations . | . . . . . . . Robots Corrupted . | . . . . . . . Combat Hostiles . | . . . . . . . Parts Fried . | . . . . . . . Impact Corruptions . | . . . . . . . Robots Melted . | . . . . . . . Combat Hostiles . | . . . . . . . Parts Melted 1 | . . . 1 . . . Heat Transferred 481 | . . 222 259 . . . Parts Sabotaged . | . . . . . . . Parts Stolen . | . . . . . . . Parts Stripped . | . . . . . . . Power Chain Reactions . | . . . . . . . Missiles Intercepted . | . . . . . . . Alert | -11 -10 -10 -9 -9 -9 -8 ------- Run | Jun Mat Min Mat Min Exi Min Peak Influence 585 | . 413 102 585 100 . 85 Initial 100 | . . 39 33 100 . . Average 184 | . 223 76 247 100 . 56 Maximum Alert Level 2 | . 2 . 2 . . . Low Security (%) 52 | . 33 100 26 100 . 100 Level 1 41 | . 60 . 60 . . . Level 2 6 | . 5 . 12 . . . Level 3 . | . . . . . . . Level 4 . | . . . . . . . Level 5 . | . . . . . . . High Security . | . . . . . . . Max Security . | . . . . . . . Squads Dispatched 8 | . 4 1 3 . . . Investigation 3 | . 1 1 1 . . . Extermination . | . . . . . . . Reinforcement 5 | . 3 . 2 . . . Assault . | . . . . . . . Garrison . | . . . . . . . Intercept . | . . . . . . . Searches Triggered . | . . . . . . . Construction Impeded . | . . . . . . . Haulers Reinforced . | . . . . . . . Active Scanning Responses . | . . . . . . . Cargo Convoy Interrupts . | . . . . . . . Stealth | -11 -10 -10 -9 -9 -9 -8 --------- Run | Jun Mat Min Mat Min Exi Min Distress Signals 2 | . . . 2 . . . Communications Jammed . | . . . . . . . Distress Signals . | . . . . . . . Times Spotted 88 | . 38 8 38 . . 4 Peak Tracking Total 5 | . 5 3 5 . . 3 Tactical Retreats 6 | . 4 1 1 . . . Traps | -11 -10 -10 -9 -9 -9 -8 ------- Run | Jun Mat Min Mat Min Exi Min Traps Triggered 4 | . 4 . . . . . Indirectly . | . . . . . . . Trap Hack Attempts . | . . . . . . . Triggered . | . . . . . . . Disarmed . | . . . . . . . Reprogrammed . | . . . . . . . Reused . | . . . . . . . Traps Extracted . | . . . . . . . Installed . | . . . . . . . Triggered . | . . . . . . . Machines | -11 -10 -10 -9 -9 -9 -8 ---------- Run | Jun Mat Min Mat Min Exi Min Machines Disabled 4 | . . . 4 . . . Max in Single Turn 2 | . . . 2 . . . Machines Repaired . | . . . . . . . Machines Sabotaged . | . . . . . . . Overloaded Fab Kills . | . . . . . . . Hacking | -11 -10 -10 -9 -9 -9 -8 --------- Run | Jun Mat Min Mat Min Exi Min Machines Accessed 12 | . 2 1 5 1 3 . Terminals 7 | . 2 . 5 . . . Fabricators . | . . . . . . . Repair Stations . | . . . . . . . Recycling Units . | . . . . . . . Scanalyzers . | . . . . . . . Garrison Access . | . . . . . . . Total Hacks 63 | . 4 1 17 1 40 . Successful 53 | . 2 1 9 1 40 . Failed 9 | . 2 . 7 . . . Catastrophic 2 | . 1 . 1 . . . Database Lockouts 1 | . . . 1 . . . Manual 14 | . 2 . 12 . . . Terminals 21 | . 4 . 17 . . . Fabricators . | . . . . . . . Repair Stations . | . . . . . . . Recycling Units . | . . . . . . . Scanalyzers . | . . . . . . . Garrison Access . | . . . . . . . Terminal Hacks 51 | . 1 1 8 1 40 . Record 40 | . . . . . 40 . Robot Analysis 1 | . . . 1 . . . Prototype ID Bank 3 | . 1 . 2 . . . Open Door 2 | . . 1 . 1 . . Branch Access Points 1 | . . . 1 . . . Alert Level 1 | . . . 1 . . . Unreport Threat 2 | . . . 2 . . . Locate Traps 1 | . . . 1 . . . Fabricator Hacks . | . . . . . . . Repair Station Hacks . | . . . . . . . Recycling Unit Hacks . | . . . . . . . Scanalyzer . | . . . . . . . Garrison Access Hacks . | . . . . . . . Unauthorized Hacks 2 | . 1 . 1 . . . Terminals 2 | . 1 . 1 . . . Assimilate 1 | . 1 . . . . . Operators 1 | . . . 1 . . . Fabricators . | . . . . . . . Repair Stations . | . . . . . . . Recycling Units . | . . . . . . . Scanalyzers . | . . . . . . . Garrison Access . | . . . . . . . Data Cores Recovered . | . . . . . . . Used . | . . . . . . . Hacking Detections 5 | . 1 . 4 . . . Full Trace Events 1 | . . . 1 . . . Feedback Events . | . . . . . . . Feedback Blocked . | . . . . . . . Robot Schematics Acquired . | . . . . . . . Robots Built . | . . . . . . . Authchips . | . . . . . . . Time . | . . . . . . . Total Robot Build Rating . | . . . . . . . Part Schematics Acquired . | . . . . . . . Parts Built . | . . . . . . . Authchips . | . . . . . . . Time . | . . . . . . . Total Part Build Rating . | . . . . . . . Parts Repaired . | . . . . . . . Time . | . . . . . . . Parts Recycled . | . . . . . . . Recycled Matter . | . . . . . . . Retrieved Matter . | . . . . . . . Retrieved Components . | . . . . . . . Parts Scanalyzed . | . . . . . . . Part Schematics Acquired . | . . . . . . . Parts Damaged . | . . . . . . . Bothacking | -11 -10 -10 -9 -9 -9 -8 ------------ Run | Jun Mat Min Mat Min Exi Min Used RIF Installer . | . . . . . . . Robots Hacked . | . . . . . . . Non-combat . | . . . . . . . Combat . | . . . . . . . Robot Hacks Applied . | . . . . . . . Relay Couplers Released . | . . . . . . . Fabnet Peak Effective % . | . . . . . . . Robots Rewired . | . . . . . . . Allies Hacked . | . . . . . . . Hacks Repelled . | . . . . . . . Allies | -11 -10 -10 -9 -9 -9 -8 -------- Run | Jun Mat Min Mat Min Exi Min Total Allies 3 | . . 3 . . . . Largest Group 3 | . . 3 3 . . . Highest-Rated Group 40 | . . 40 40 . . . Highest-Rated Ally 16 | . . 16 16 . . . Total Orders . | . . . . . . . Ally Attacks 35 | . . 14 21 . . . Total Damage 348 | . . 149 199 . . . Kills 4 | . . 2 2 . . . Allies Corrupted . | . . . . . . . Allies Melted . | . . . . . . . Intel | -11 -10 -10 -9 -9 -9 -8 ------- Run | Jun Mat Min Mat Min Exi Min Robot Analysis Total 1 | . . . 1 . . . Derelict Logs Recovered 3 | . . 2 . 1 . . Drone Launches . | . . . . . . . Drone Recoveries . | . . . . . . . Exploration | -11 -10 -10 -9 -9 -9 -8 ------------- Run | Jun Mat Min Mat Min Exi Min Turns Passed 4622 | . 1245 526 1120 223 1185 323 Spaces Moved 2636 | 1 716 437 599 137 628 118 Core 2 | . . . 2 . . . Treads 1137 | . . . 254 137 628 118 Legs 760 | 1 716 43 . . . . Wheels 737 | . . 394 343 . . . Hover . | . . . . . . . Flight . | . . . . . . . Fastest Speed 90 | 120 120 90 90 160 160 240 Average Speed 141 | 120 120 104 122 160 188 240 Slowest Speed 350 | 120 190 190 350 160 240 240 Overloaded Moves . | . . . . . . . Propulsion Burnouts . | . . . . . . . Robots Hopped . | . . . . . . . Cave-ins Triggered . | . . . . . . . Exploration Rate (%) 53 | 2 80 86 58 40 87 19 Regions Visited 6 Branch Regions 4 Pre-discovered Areas 1 | . . . . . 1 . Known Exits Taken 3 | . . . 1 1 1 . Unknown Exits Taken 3 | 1 1 1 . . . . Scrap Searched 1 | . . 1 . . . . Spaces Dug . | . . . . . . . Terrain Destroyed 96 | . . . 96 . . . Melee . | . . . . . . . Projectile . | . . . . . . . AOE 96 | . . . 96 . . . Terrain Rammed . | . . . . . . . Walls Destroyed . | . . . . . . . Machines Disabled . | . . . . . . . Actions | -11 -10 -10 -9 -9 -9 -8 --------- Run | Jun Mat Min Mat Min Exi Min Total 3190 | . 939 493 843 141 634 140 Wait 193 | . 89 28 67 3 1 5 Move 2630 | . 715 436 598 136 627 118 Hop . | . . . . . . . Pick Up 43 | . 8 7 21 1 1 5 Fast Attach 17 | . 7 2 8 . . . Attach 14 | . 3 1 10 . . . Detach 2 | . 1 . 1 . . . Swap 30 | . 6 3 18 . 2 1 Drop 46 | . 11 6 24 1 3 1 Fire 213 | . 99 10 94 . . 10 Melee . | . . . . . . . Ram . | . . . . . . . Kick . | . . . . . . . Crush 2 | . . . 2 . . . Escape Stasis . | . . . . . . . Rewire . | . . . . . . . Trap . | . . . . . . . Miscellaneous . | . . . . . . . Route ------- -11/Junkyard -10/Materials (discovered 4 exits: *Mat x2 / *Min x2) -10/Mines -9/Materials (discovered 3 exits: *Mat x2 / *Min) -9/Mines -9/Exiles -8/Mines History --------- Turn | Location | Event 1 | -11/Junkyard | Discovered new exit (range 0) 1 | -11/Junkyard | Entered Materials 99 | -10/Materials | Discovered new exit (range 11) 318 | -10/Materials | Build established: Mutant 325 | -10/Materials | Discovered new exit (range 16) 354 | -10/Materials | Discovered new exit (range 14) 1022 | -10/Materials | Core integrity fell below 50% 1045 | -10/Materials | Discovered new exit (range 4) 1246 | -10/Materials | Entered Mines 1253 | -10/Mines | Received a Rocket Launcher from a helpful Derelict 1339 | -10/Mines | Met a Derelict shopkeep closing up shop 1386 | -10/Mines | Assisted by bots powering up and referring to "LRC-V3" 1400 | -10/Mines | Learned Materials non-interactive machine intel 1422 | -10/Mines | Learned Materials terminal intel 1546 | -10/Mines | Joined a pair of Derelicts in attacking an 0b10 outpost 1752 | -10/Mines | Discovered new exit (range 7) 1772 | -10/Mines | Entered Materials 1772 | -9/Materials | Accompanied by 3 allies 1772 | -9/Materials | Evolved 2 slots: Utility x2 1773 | -9/Materials | Loaded intel: 47 non-interactive machine locations 1774 | -9/Materials | Loaded intel: 12 terminal locations 1854 | -9/Materials | Identified exit to Mines 1854 | -9/Materials | Central database locked down 2046 | -9/Materials | Discovered new exit (range 8) 2092 | -9/Materials | Build established: Scavenger-Mutant 2096 | -9/Materials | Lost 11 parts (1p5n2u3w) 2151 | -9/Materials | Identified exit to Materials 2249 | -9/Materials | Core integrity fell below 50% 2601 | -9/Materials | Discovered exit to Materials (range 10) 2892 | -9/Materials | Entered Mines 2937 | -9/Mines | Learned Materials garrison access intel 2967 | -9/Mines | Met a Derelict who couldn't figure out how to use a Trap Extractor 2998 | -9/Mines | Assembled infested the area 3069 | -9/Mines | Build established: Mutant 3108 | -9/Mines | Discovered new exit (range 5) 3113 | -9/Mines | Identified exit to Exiles 3115 | -9/Mines | Entered Exiles 3154 | -9/Exiles | Met 8R-AWN 3183 | -9/Exiles | Met EX-HEX 3235 | -9/Exiles | Met EX-BIN 3361 | -9/Exiles | Met EX-DEC 3450 | -9/Exiles | Visited The Gauntlet 3625 | -9/Exiles | Learned location of Zion (-7) 3822 | -9/Exiles | Discovered new exit (range 12) 4297 | -9/Exiles | Identified exit to Mines 4300 | -9/Exiles | Entered Mines 4370 | -8/Mines | Core integrity fell below 20% 4623 | -8/Mines | Destroyed by H-55 Commando with Gauss Rifle Last Messages --------------- 04370_ G-50 Soldier destroyed. 04370_ Switching to secondary target: G-47 Trooper. 04371_ Acquired 44 matter. 04374_ Acquired 6 matter. 04377_ Acquired 1 matter. 04379_ G-47 Trooper destroyed. 04392_ Acquired 11 matter. 04398_ Dropped Hvy. Ion Engine. 04401_ Acquired Aluminum Leg. 04402_ Acquired 10 matter. 04407_ Acquired Aluminum Leg. 04412_ Acquired Carbon-fiber Leg. 04416_ Acquired Hvy. Laser. 04424_ Acquired Carbon-fiber Leg. 04592_ Slug penetrates Wall. 04592_ Hacking Suite destroyed. 04595_ Penetrated by Slug. 04606_ Slug penetrates Wall. 04623_ H-55 Commando suffers critical hit (Destroy). 04623_ Destroyed Carbon-fiber Leg. Map ----- +----------------------------------------------------+ | ????????????????????????????????????????????? | | ????????????????????????????????????????????? | | ????????????????????????????????????????????? | | ????????????????????????????????????????????? | | ????????????????????????????????????????????? | | ????????????????????????????????????????????? | | ????????????????????????????????????????????? | | ????????????????????????????????????????????? | | ??????????####?????##???????????????????????? | | ?????????## ##???? ???????????????????????? | | ?????????# #???? #???????????????????????? | | ?????????# ##### #???????????????????????? | | ?????????# #???????????????????????? | | ?????????# ## ## ##???????????????????????? | | ????????## ## ## ###??????????????????????? | | ????????# ## ## #??????????????????????? | | ????????# #### #??????????????????????? | | ??????### #####??# #??????????????????????? | | ??????# ##??????# #??????????????????????? | | ??????# ####???????# #??????????????????????? | | ??????# #??????????# #??????????????????????? | | ??????# #??????????# #??????????????????????? | | ??????# #??????????# #??????????????????????? | | ??????# #??????????# #??????????????????????? | | ??????# #??????????# #??????????????????????? | | ??????# #??????????#@#??????????????????????? | | ??????# #??????????# #??????????????????????? | | ??????# #??????????# #?###??????????????????? | | ??????# #??????????#h### ##?????????????????? | | ??????# #??????????# ##????????????????? | | ??????# #??????????##### ##???????????????? | | ??????# #??????????????## #???????????????? | | ??????# #??????????????## #?????????? ???? | | ??????# #???????###??### ##???????? ???? | | ??????# #?????## #### ##??????? ?????? | | ???#### ####### ## ##?????? #???????? | | ???# ##????? #????????? | | ???# ##### #????????? | | ???# ###[######### x "%" #?????????? | | ???# ###%##??????## " ##?????????? | | ???# *% = ##??????# #### ##??????????? | | ???# [! #??????# #???# ##???????????? | | ??## #??????## #????###????????????? | | ??# ##???????## #???????????????????? | | ??# ##?????????# #???????????????????? | | ??# ##??????????# ????????????????????? | | ??# ##???????????# ????????????????????? | | ??## ##????????????###????????????????????? | | ???#####????????????????????????????????????? | | ????????????????????????????????????????????? | +----------------------------------------------------+ Best States ------------- Heat Dissipation 28 Energy Generation 18 Energy Capacity 280 Matter Stores 300 Matter Capacity 300 Sight Range 16 Robot Scan Range 14 Terrain Scan Density 10 Armor Coverage 225 Evasion (%) 55 Recoil Reduction 2 Offensive Hacking 10 Item Schematics ----------------- None Robot Schematics ------------------ None Fabricated ------------ Nothing Alien Tech Used ----------------- None Achievements -------------- None Challenges ------------ None Game ------ Seed GyrokineticProcessingArmor Manual? 0 Play Time 00:28:14 Cumulative 177.7 hours Start 2023.11.17 @ 12:02:57 End 2023.11.17 @ 14:21:15 Sessions 2 Manual Loads 0 Difficulty Rogue Special Mode None Game No. 103 Rogue 103 Adventurer 0 Explorer 0 Win Type - Total 1 Types 1/0/0/0/0/0/0/0/0 Lore% 45 Gallery% 67 Achievement% 54 Wizard Run 0 Options --------- ASCII 0 Keyboard 1 Movement Numpad Keybinds 0 Fullscreen 1 Font 24/Smallcaps Map View 76x50 Tactical HUD 1 Map Filters NONE Filters NONE Steam 1 RUN: 83b1d963-d5b6-40d2-8d1f-6bd4a6bb89ae